fUST/lending_fUST_20250725
["ID","MTS","AMOUNT","RATE_DAILY","PERIOD"]
[374693565,1753416646390,-1896.12,0.00018282,2]
[374693566,1753416646399,-1222.07,0.00018282,2]
[374693567,1753416646409,-460.0,0.00018282,2]
[374693568,1753416646419,-460.0,0.00018282,2]
[374693569,1753416646429,-460.0,0.00018284,2]
[374693570,1753416646439,-619.96,0.00018284,2]
[374693571,1753416646448,-460.0,0.00018284,2]
[374693572,1753416646458,-460.0,0.00018284,2]
[374693573,1753416646467,-171.42,0.00018284,2]
[374693574,1753416646477,-460.0,0.00018284,2]
[374693575,1753416646487,-460.0,0.00018284,2]
[374693576,1753416646496,-460.0,0.00018284,2]
[374693577,1753416646506,-460.0,0.00018284,2]
[374693578,1753416646515,-378.07,0.00018284,2]
[374693579,1753416646527,-586.37588568,0.0001835,2]
[374693580,1753416646536,-500.0,0.00018368,2]
[374693581,1753416646546,-152.282751,0.00018383,2]
[374693582,1753416646555,-151.0,0.00018383,2]
[374693583,1753416646564,-151.0,0.00018385,2]
[374693584,1753416646573,-151.0,0.00018385,2]
[374693585,1753416646583,-460.0,0.00018385,2]
[374693586,1753416646593,-460.0,0.00018385,2]
[374693587,1753416646603,-460.0,0.00018385,2]
[374693588,1753416646612,-460.0,0.00018385,2]
[374693589,1753416646622,-539.16,0.00018386,2]
[374693590,1753416646632,-151.0,0.000184,2]
[374693591,1753416646641,-500.0,0.00018409,2]
[374693592,1753416646651,-1528.9,0.00018456,2]
[374693593,1753416646660,-460.0,0.00018456,2]
[374693594,1753416646669,-460.0,0.00018456,2]
[374693595,1753416646678,-1386.56,0.00018456,2]
[374693596,1753416646688,-460.0,0.00018456,2]
[374693597,1753416646698,-1197.95,0.00018456,2]
[374693598,1753416646708,-1216.97,0.00018456,2]
[374693599,1753416646717,-460.0,0.00018456,2]
[374693600,1753416646727,-1481.6,0.00018456,2]
[374693601,1753416646736,-460.0,0.00018456,2]
[374693602,1753416646746,-460.0,0.00018456,2]
[374693603,1753416646755,-460.0,0.00018456,2]
[374693604,1753416646764,-460.0,0.00018456,2]
[374693605,1753416646775,-460.0,0.00018457,2]
[374693606,1753416646784,-460.0,0.00018457,2]
[374693607,1753416646793,-460.0,0.00018457,2]
[374693608,1753416646803,-460.0,0.00018457,2]
[374693609,1753416646812,-460.0,0.00018457,2]
[374693610,1753416646822,-460.0,0.00018457,2]
[374693611,1753416646832,-460.0,0.00018457,2]
[374693612,1753416646841,-153.04,0.00018457,2]
[374693613,1753416646850,-460.0,0.00018457,2]
[374693614,1753416646860,-460.0,0.00018457,2]
[374693615,1753416646870,-867.33,0.00018457,2]
[374693616,1753416646879,-460.0,0.00018457,2]
[374693617,1753416646888,-482.61,0.00018457,2]
[374693618,1753416646898,-460.0,0.00018457,2]
[374693619,1753416646907,-564.69,0.00018457,2]
[374693620,1753416646917,-460.0,0.00018457,2]
[374693621,1753416646926,-563.01,0.00018457,2]
[374693622,1753416646935,-460.0,0.00018457,2]
[374693623,1753416646944,-460.0,0.00018457,2]
[374693624,1753416646953,-460.0,0.00018457,2]
[374693625,1753416646965,-460.0,0.00018457,2]
[374693626,1753416646974,-176.17,0.00018457,2]
[374693627,1753416646984,-460.0,0.00018457,2]
[374693628,1753416646993,-465.26,0.00018457,2]
[374693629,1753416647003,-460.0,0.00018457,2]
[374693630,1753416647012,-476.03,0.00018457,2]
[374693631,1753416647024,-460.0,0.00018457,2]
[374693632,1753416647033,-460.0,0.00018457,2]
[374693633,1753416647042,-460.0,0.00018554,2]
[374693634,1753416647052,-326.03136842,0.00018554,2]
[374693635,1753416647062,-460.0,0.00018554,2]
[374693636,1753416647071,-460.0,0.00018554,2]
[374693637,1753416647081,-460.0,0.00018554,2]
[374693638,1753416647091,-460.0,0.00018554,2]
[374693639,1753416647101,-518.24,0.00018554,2]
[374693640,1753416647110,-556.11,0.00018554,2]
[374693641,1753416647119,-460.0,0.00018554,2]
[374693642,1753416647132,-162.73,0.00018554,2]
[374693643,1753416647142,-507.12,0.00018554,2]
[374693644,1753416647151,-460.0,0.00018554,2]
[374693645,1753416647161,-283.92,0.00018554,2]
[374693646,1753416647171,-628.25,0.00018554,2]
[374693647,1753416647180,-191.03,0.00018554,2]
[374693648,1753416647190,-1896.12,0.00018556,2]
[374693649,1753416647199,-1222.07,0.00018556,2]
[374693650,1753416647209,-460.0,0.00018556,2]
[374693651,1753416647219,-460.0,0.00018556,2]
[374693652,1753416647229,-460.0,0.00018558,2]
[374693653,1753416647239,-619.96,0.00018558,2]
[374693654,1753416647249,-495.63,0.00018558,2]
[374693655,1753416647258,-460.0,0.00018558,2]
[374693656,1753416647268,-460.0,0.00018558,2]
[374693657,1753416647279,-460.0,0.00018558,2]
[374693658,1753416647288,-193.59,0.00018558,2]
[374693659,1753416647298,-419.66,0.00018558,2]
[374693660,1753416647307,-151.0,0.0001856,2]
[374693661,1753416647316,-420.0,0.00018655,2]
[374693662,1753416647326,-420.0,0.00018655,2]
[374693663,1753416647336,-956.0,0.00018658,2]
[374693664,1753416647345,-593.33854178,0.00018659,2]
[374693665,1753416647355,-460.0,0.00018659,2]
[374693666,1753416647365,-460.0,0.00018659,2]
[374693667,1753416647374,-460.0,0.00018659,2]
[374693668,1753416647384,-151.0,0.000187,2]
[374693669,1753416647394,-160.0,0.00018713,2]
[374693670,1753416647404,-1528.9,0.0001873,2]
[374693671,1753416647414,-460.0,0.0001873,2]
[374693672,1753416647423,-460.0,0.0001873,2]
[374693673,1753416647433,-1386.56,0.0001873,2]
[374693674,1753416647444,-460.0,0.0001873,2]
[374693675,1753416647455,-1197.95,0.0001873,2]
[374693676,1753416647464,-1216.97,0.0001873,2]
[374693677,1753416647474,-460.0,0.0001873,2]
[374693678,1753416647484,-1481.6,0.0001873,2]
[374693679,1753416647493,-460.0,0.0001873,2]
[374693680,1753416647503,-460.0,0.0001873,2]
[374693681,1753416647513,-460.0,0.0001873,2]
[374693682,1753416647525,-460.0,0.0001873,2]
[374693683,1753416647544,-460.0,0.00018731,2]
[374693684,1753416647554,-460.0,0.00018731,2]
[374693685,1753416647565,-460.0,0.00018731,2]
[374693686,1753416647584,-460.0,0.00018731,2]
[374693687,1753416647594,-460.0,0.00018731,2]
[374693688,1753416647604,-867.33,0.00018731,2]
[374693689,1753416647613,-460.0,0.00018731,2]
[374693690,1753416647623,-482.61,0.00018731,2]
[374693691,1753416647633,-460.0,0.00018731,2]
[374693692,1753416647643,-564.69,0.00018731,2]
[374693693,1753416647652,-460.0,0.00018731,2]
[374693694,1753416647663,-563.01,0.00018731,2]
[374693695,1753416647672,-460.0,0.00018731,2]
[374693696,1753416647682,-460.0,0.00018731,2]
[374693697,1753416647692,-460.0,0.00018731,2]
[374693698,1753416647702,-496.13,0.00018731,2]
[374693699,1753416647713,-460.0,0.00018731,2]
[374693700,1753416647723,-465.26,0.00018731,2]
[374693701,1753416647733,-460.0,0.00018731,2]
[374693702,1753416647744,-476.03,0.00018731,2]
[374693703,1753416647753,-460.0,0.00018731,2]
[374693704,1753416647763,-460.0,0.00018731,2]
[374693705,1753416647777,-500.0,0.00018735,2]
[374693706,1753416647787,-1680.0,0.00018747,2]
[374693707,1753416647796,-500.0,0.00018761,2]
[374693708,1753416647806,-501.60230331,0.00018761,2]
[374693709,1753416647816,-500.0,0.00018761,2]
[374693710,1753416647826,-500.0,0.00018761,2]
[374693711,1753416647835,-500.0,0.00018761,2]
[374693712,1753416647845,-500.0,0.00018761,2]
[374693713,1753416647855,-501.53651952,0.00018761,2]
[374693714,1753416647864,-502.66592554,0.00018761,2]
[374693715,1753416647874,-500.82028526,0.00018761,2]
[374693716,1753416647883,-12627.2413641,0.000188,3]
[374693717,1753416647893,-151.0,0.000188,2]
[374693718,1753416647903,-214.7599002,0.000188,3]
[374693719,1753416647913,-460.0,0.00018828,2]
[374693720,1753416647922,-460.0,0.00018828,2]
[374693721,1753416647932,-460.0,0.00018828,2]
[374693722,1753416647942,-460.0,0.00018828,2]
[374693723,1753416647951,-518.24,0.00018828,2]
[374693724,1753416647961,-556.11,0.00018828,2]
[374693725,1753416647971,-237.9,0.00018828,2]
[374693726,1753416647980,-507.12,0.00018828,2]
[374693727,1753416647990,-460.0,0.00018828,2]
[374693728,1753416647999,-628.25,0.00018828,2]
[374693729,1753416648008,-151.0,0.0001883,2]
[374693730,1753416648018,-1896.12,0.0001883,2]
[374693731,1753416648034,-1222.07,0.0001883,2]
[374693732,1753416648045,-460.0,0.0001883,2]
[374693733,1753416648054,-378.42,0.0001883,2]
[374693734,1753416648064,-460.0,0.00018832,2]
[374693735,1753416648074,-619.96,0.00018832,2]
[374693736,1753416648083,-460.0,0.00018832,2]
[374693737,1753416648093,-460.0,0.00018832,2]
[374693738,1753416648103,-368.75,0.00018832,2]
[374693739,1753416648112,-151.0,0.00018834,2]
[374693740,1753416648126,-153.554281,0.00018834,2]
[374693741,1753416648136,-151.0,0.000189,2]
[374693742,1753416648146,-3203.09515138,0.000189,2]
[374693743,1753416648156,-5878.07737287,0.000189,2]
[374693744,1753416648166,-460.0,0.00018933,2]
[374693745,1753416648176,-520.7,0.00018933,2]
[374693746,1753416648186,-460.0,0.00018933,2]
[374693747,1753416648195,-1003.78824934,0.00018957,2]
[374693748,1753416648207,-840.4016166,0.00018995,2]
[374693749,1753416648216,-231.20877768,0.00018995,2]
[374693750,1753416648226,-160.0,0.00018995,2]
[374693751,1753416648236,-160.0,0.00018995,2]
[374693752,1753416648246,-215.93003454,0.00018995,2]
[374693753,1753416648256,-160.0,0.00018995,2]
[374693754,1753416648266,-214.7599002,0.00018995,2]
[374693755,1753416648281,-12627.2413641,0.00018995,2]
[374693756,1753416648292,-160.0,0.00018997,2]
[374693757,1753416648302,-476.88235691,0.00018997,2]
[374693758,1753416648313,-1528.9,0.00019004,2]
[374693759,1753416648323,-460.0,0.00019004,2]
[374693760,1753416648333,-460.0,0.00019004,2]
[374693761,1753416648343,-1386.56,0.00019004,2]
[374693762,1753416648353,-460.0,0.00019004,2]
[374693763,1753416648363,-1197.95,0.00019004,2]
[374693764,1753416648372,-1216.97,0.00019004,2]
[374693765,1753416648381,-460.0,0.00019004,2]
[374693766,1753416648392,-1481.6,0.00019004,2]
[374693767,1753416648401,-403.22,0.00019004,2]
[374693768,1753416648412,-460.0,0.00019004,2]
[374693769,1753416648422,-460.0,0.00019004,2]
[374693770,1753416648432,-460.0,0.00019004,2]
[374693771,1753416648442,-460.0,0.00019005,2]
[374693772,1753416648451,-460.0,0.00019005,2]
[374693773,1753416648460,-460.0,0.00019005,2]
[374693774,1753416648471,-409.87,0.00019005,2]
[374693775,1753416648480,-200.3,0.00019005,2]
[374693776,1753416648490,-867.33,0.00019005,2]
[374693777,1753416648499,-460.0,0.00019005,2]
[374693778,1753416648509,-482.61,0.00019005,2]
[374693779,1753416648519,-460.0,0.00019005,2]
[374693780,1753416648533,-564.69,0.00019005,2]
[374693781,1753416648543,-460.0,0.00019005,2]
[374693782,1753416648552,-563.01,0.00019005,2]
[374693783,1753416648562,-460.0,0.00019005,2]
[374693784,1753416648571,-460.0,0.00019005,2]
[374693785,1753416648581,-245.21,0.00019005,2]
[374693786,1753416648591,-373.63,0.00019005,2]
[374693787,1753416648601,-465.26,0.00019005,2]
[374693788,1753416648611,-297.81,0.00019005,2]
[374693789,1753416648620,-476.03,0.00019005,2]
[374693790,1753416648630,-460.0,0.00019005,2]
[374693791,1753416648640,-460.0,0.00019005,2]
[374693792,1753416648649,-151.0,0.000191,2]
[374693793,1753416648659,-460.0,0.00019102,2]
[374693794,1753416648669,-460.0,0.00019102,2]
[374693795,1753416648680,-460.0,0.00019102,2]
[374693796,1753416648690,-460.0,0.00019102,2]
[374693797,1753416648700,-518.24,0.00019102,2]
[374693798,1753416648710,-556.11,0.00019102,2]
[374693799,1753416648720,-507.12,0.00019102,2]
[374693800,1753416648730,-460.0,0.00019102,2]
[374693801,1753416648740,-628.25,0.00019102,2]
[374693802,1753416648751,-1896.12,0.00019104,2]
[374693803,1753416648760,-1222.07,0.00019104,2]
[374693804,1753416648770,-460.0,0.00019104,2]
[374693805,1753416648785,-460.0,0.00019106,2]
[374693806,1753416648795,-619.96,0.00019106,2]
[374693807,1753416648806,-572.39,0.00019106,2]
[374693808,1753416648817,-563.03948405,0.00019106,2]
[374693809,1753416648827,-151.0,0.00019108,2]
[374693810,1753416648838,-500.0,0.0001917,2]
[374693811,1753416648848,-5878.07737267,0.00019176,2]
[374693812,1753416648858,-321.28337792,0.00019178,7]
[374693813,1753416648867,-5000.0,0.00019178,2]
[374693814,1753416648877,-459.682227,0.00019178,2]
[374693815,1753416648887,-666.0,0.00019178,2]
[374693816,1753416648897,-151.0,0.000192,2]
[374693817,1753416648906,-460.0,0.00019207,2]
[374693818,1753416648916,-460.0,0.00019207,2]
[374693819,1753416648926,-207.02113163,0.0001926,3]
[374693820,1753416648936,-260.0,0.00019261,2]
[374693821,1753416648946,-1528.9,0.00019278,2]
[374693822,1753416648956,-460.0,0.00019278,2]
[374693823,1753416648965,-460.0,0.00019278,2]
[374693824,1753416648975,-1386.56,0.00019278,2]
[374693825,1753416648984,-460.0,0.00019278,2]
[374693826,1753416648993,-1197.95,0.00019278,2]
[374693827,1753416649002,-1216.97,0.00019278,2]
[374693828,1753416649012,-460.0,0.00019278,2]
[374693829,1753416649022,-1481.6,0.00019278,2]
[374693830,1753416649034,-460.0,0.00019278,2]
[374693831,1753416649044,-460.0,0.00019278,2]
[374693832,1753416649053,-460.0,0.00019278,2]
[374693833,1753416649063,-460.0,0.00019279,2]
[374693834,1753416649072,-460.0,0.00019279,2]
[374693835,1753416649082,-563.84169304,0.00019279,2]
[374693836,1753416649092,-867.33,0.00019279,2]
[374693837,1753416649101,-460.0,0.00019279,2]
[374693838,1753416649111,-482.61,0.00019279,2]
[374693839,1753416649123,-460.0,0.00019279,2]
[374693840,1753416649135,-564.69,0.00019279,2]
[374693841,1753416649144,-424.69,0.00019279,2]
[374693842,1753416649154,-563.01,0.00019279,2]
[374693843,1753416649163,-460.0,0.00019279,2]
[374693844,1753416649174,-460.0,0.00019279,2]
[374693845,1753416649184,-465.26,0.00019279,2]
[374693846,1753416649193,-476.03,0.00019279,2]
[374693847,1753416649204,-460.0,0.00019279,2]
[374693848,1753416649215,-460.0,0.00019279,2]
[374693849,1753416649225,-1000.0,0.00019283,2]
[374693850,1753416649234,-523.69418917,0.00019309,2]
[374693851,1753416649245,-506.55231757,0.00019309,2]
[374693852,1753416649255,-1139.8429715,0.00019309,2]
[374693853,1753416649264,-1000.0,0.00019309,2]
[374693854,1753416649277,-1000.0,0.00019309,2]
[374693855,1753416649287,-151.0,0.00019329,2]
[374693856,1753416649296,-151.0,0.00019329,2]
[374693857,1753416649306,-100000.0,0.00019329,2]
[374693858,1753416649316,-460.0,0.00019376,2]
[374693859,1753416649326,-460.0,0.00019376,2]
[374693860,1753416649336,-460.0,0.00019376,2]
[374693861,1753416649346,-460.0,0.00019376,2]
[374693862,1753416649356,-518.24,0.00019376,2]
[374693863,1753416649366,-556.11,0.00019376,2]
[374693864,1753416649495,-507.12,0.00019376,2]
[374693865,1753416649506,-460.0,0.00019376,2]
[374693866,1753416649515,-628.25,0.00019376,2]
[374693867,1753416649526,-1896.12,0.00019378,2]
[374693868,1753416649535,-1222.07,0.00019378,2]
[374693869,1753416649545,-373.26,0.00019378,2]
[374693870,1753416649555,-460.0,0.0001938,2]
[374693871,1753416649564,-619.96,0.0001938,2]
[374693872,1753416649574,-5878.07737267,0.00019452,2]
[374693873,1753416649584,-460.0,0.00019481,2]
[374693874,1753416649593,-460.0,0.00019481,2]
[374693875,1753416649604,-1528.9,0.00019552,2]
[374693876,1753416649613,-460.0,0.00019552,2]
[374693877,1753416649623,-460.0,0.00019552,2]
[374693878,1753416649633,-1386.56,0.00019552,2]
[374693879,1753416649643,-461.32448744,0.00019552,2]
[374693880,1753416649657,-1197.95,0.00019552,2]
[374693881,1753416649667,-1216.97,0.00019552,2]
[374693882,1753416649677,-164.63,0.00019552,2]
[374693883,1753416649686,-1481.6,0.00019552,2]
[374693884,1753416649696,-460.0,0.00019552,2]
[374693885,1753416649705,-460.0,0.00019552,2]
[374693886,1753416649715,-460.0,0.00019553,2]
[374693887,1753416649724,-460.0,0.00019553,2]
[374693888,1753416649734,-867.33,0.00019553,2]
[374693889,1753416649747,-460.0,0.00019553,2]
[374693890,1753416649756,-482.61,0.00019553,2]
[374693891,1753416649766,-460.0,0.00019553,2]
[374693892,1753416649776,-564.69,0.00019553,2]
[374693893,1753416649785,-563.01,0.00019553,2]
[374693894,1753416649795,-460.0,0.00019553,2]
[374693895,1753416649806,-460.0,0.00019553,2]
[374693896,1753416649815,-465.26,0.00019553,2]
[374693897,1753416649825,-476.03,0.00019553,2]
[374693898,1753416649834,-460.0,0.00019553,2]
[374693899,1753416649844,-460.0,0.00019553,2]
[374693900,1753416649853,-245.15257753,0.00019565,2]
[374693901,1753416649862,-460.0,0.0001965,2]
[374693902,1753416649871,-460.0,0.0001965,2]
[374693903,1753416649881,-460.0,0.0001965,2]
[374693904,1753416649891,-460.0,0.0001965,2]
[374693905,1753416649900,-518.24,0.0001965,2]
[374693906,1753416649910,-556.11,0.0001965,2]
[374693907,1753416649920,-507.12,0.0001965,2]
[374693908,1753416649929,-460.0,0.0001965,2]
[374693909,1753416649939,-628.25,0.0001965,2]
[374693910,1753416649948,-1896.12,0.00019652,2]
[374693911,1753416649957,-1222.07,0.00019652,2]
[374693912,1753416649967,-460.0,0.00019654,2]
[374693913,1753416649976,-619.96,0.00019654,2]
[374693914,1753416649986,-586.37588568,0.000197,2]
[374693915,1753416649995,-5878.07737267,0.00019728,2]
[374693916,1753416650004,-460.0,0.00019755,2]
[374693917,1753416650013,-460.0,0.00019755,2]
[374693918,1753416650023,-360.0,0.00019809,2]
[374693919,1753416650034,-1528.9,0.00019826,2]
[374693920,1753416650043,-246.19,0.00019826,2]
[374693921,1753416650053,-460.0,0.00019826,2]
[374693922,1753416650063,-1386.56,0.00019826,2]
[374693923,1753416650073,-1197.95,0.00019826,2]
[374693924,1753416650082,-1216.97,0.00019826,2]
[374693925,1753416650093,-1481.6,0.00019826,2]
[374693926,1753416650102,-460.0,0.00019826,2]
[374693927,1753416650112,-460.0,0.00019826,2]
[374693928,1753416650123,-460.0,0.00019827,2]
[374693929,1753416650134,-460.0,0.00019827,2]
[374693930,1753416650143,-867.33,0.00019827,2]
[374693931,1753416650153,-460.0,0.00019827,2]
[374693932,1753416650163,-482.61,0.00019827,2]
[374693933,1753416650172,-460.0,0.00019827,2]
[374693934,1753416650182,-564.69,0.00019827,2]
[374693935,1753416650192,-563.01,0.00019827,2]
[374693936,1753416650201,-460.0,0.00019827,2]
[374693937,1753416650212,-460.0,0.00019827,2]
[374693938,1753416650222,-465.26,0.00019827,2]
[374693939,1753416650232,-476.03,0.00019827,2]
[374693940,1753416650242,-460.0,0.00019827,2]
[374693941,1753416650251,-460.0,0.00019827,2]
[374693942,1753416650261,-503.65022164,0.00019831,2]
[374693943,1753416650270,-1000.0,0.00019857,2]
[374693944,1753416650282,-615.75524555,0.00019857,2]
[374693945,1753416650292,-151.0,0.000199,2]
[374693946,1753416650301,-460.0,0.00019924,2]
[374693947,1753416650311,-460.0,0.00019924,2]
[374693948,1753416650321,-460.0,0.00019924,2]
[374693949,1753416650330,-253.63,0.00019924,2]
[374693950,1753416650340,-518.24,0.00019924,2]
[374693951,1753416650349,-556.11,0.00019924,2]
[374693952,1753416650358,-507.12,0.00019924,2]
[374693953,1753416650368,-460.0,0.00019924,2]
[374693954,1753416650377,-628.25,0.00019924,2]
[374693955,1753416650387,-1896.12,0.00019926,2]
[374693956,1753416650396,-1222.07,0.00019926,2]
[374693957,1753416650406,-460.0,0.00019928,2]
[374693958,1753416650415,-619.96,0.00019928,2]
[374693959,1753416650425,-160.0,0.0002,3]
[374693960,1753416650435,-5878.07737267,0.00020003,2]
[374693961,1753416650444,-481.97,0.00020029,2]
[374693962,1753416650453,-460.0,0.00020029,2]
[374693963,1753416650463,-340.4,0.000201,2]
[374693964,1753416650473,-1528.9,0.000201,2]
[374693965,1753416650483,-460.0,0.000201,2]
[374693966,1753416650493,-1386.56,0.000201,2]
[374693967,1753416650503,-1197.95,0.000201,2]
[374693968,1753416650512,-1216.97,0.000201,2]
[374693969,1753416650522,-1481.6,0.000201,2]
[374693970,1753416650533,-460.0,0.000201,2]
[374693971,1753416650543,-460.0,0.000201,2]
[374693972,1753416650552,-460.0,0.00020101,2]
[374693973,1753416650562,-460.0,0.00020101,2]
[374693974,1753416650572,-867.33,0.00020101,2]
[374693975,1753416650582,-460.0,0.00020101,2]
[374693976,1753416650592,-482.61,0.00020101,2]
[374693977,1753416650602,-460.0,0.00020101,2]
[374693978,1753416650612,-564.69,0.00020101,2]
[374693979,1753416650622,-563.01,0.00020101,2]
[374693980,1753416650632,-460.0,0.00020101,2]
[374693981,1753416650642,-460.0,0.00020101,2]
[374693982,1753416650652,-465.26,0.00020101,2]
[374693983,1753416650661,-476.03,0.00020101,2]
[374693984,1753416650670,-460.0,0.00020101,2]
[374693985,1753416650680,-460.0,0.00020101,2]
[374693986,1753416650690,-160.2,0.00020123,3]
[374693987,1753416650700,-3024.84619236,0.00020156,2]
[374693988,1753416650710,-254.743346,0.00020187,2]
[374693989,1753416650719,-290.48420634,0.00020198,2]
[374693990,1753416650729,-460.0,0.00020198,2]
[374693991,1753416650739,-510.11,0.00020198,2]
[374693992,1753416650750,-518.24,0.00020198,2]
[374693993,1753416650760,-556.11,0.00020198,2]
[374693994,1753416650769,-507.12,0.00020198,2]
[374693995,1753416650781,-460.0,0.00020198,2]
[374693996,1753416650791,-628.25,0.00020198,2]
[374693997,1753416650800,-151.0,0.000202,3]
[374693998,1753416650810,-1896.12,0.000202,2]
[374693999,1753416650820,-1222.07,0.000202,2]
[374694000,1753416650829,-460.0,0.000202,2]
[374694001,1753416650838,-460.0,0.00020202,2]
[374694002,1753416650848,-619.96,0.00020202,2]
[374694003,1753416650858,-500.0,0.00020266,2]
[374694004,1753416650868,-5878.07737267,0.00020279,3]
[374694005,1753416650878,-460.0,0.00020303,2]
[374694006,1753416650887,-215.0738,0.00020352,2]
[374694007,1753416650896,-3936.85513179,0.00020352,2]
[374694008,1753416650906,-460.0,0.00020357,2]
[374694009,1753416650916,-587.0,0.00020373,2]
[374694010,1753416650926,-207.0,0.00020373,2]
[374694011,1753416650935,-1528.9,0.00020374,2]
[374694012,1753416650944,-591.41008594,0.00020374,2]
[374694013,1753416650954,-1386.56,0.00020374,2]
[374694014,1753416650963,-1197.95,0.00020374,2]
[374694015,1753416650973,-1216.97,0.00020374,2]
[374694016,1753416650982,-1481.6,0.00020374,2]
[374694017,1753416650992,-418.82,0.00020374,2]
[374694018,1753416651001,-460.0,0.00020374,2]
[374694019,1753416651011,-460.0,0.00020375,2]
[374694020,1753416651020,-460.0,0.00020375,2]
[374694021,1753416651031,-867.33,0.00020375,2]
[374694022,1753416651042,-460.0,0.00020375,2]
[374694023,1753416651051,-482.61,0.00020375,2]
[374694024,1753416651061,-460.0,0.00020375,2]
[374694025,1753416651071,-564.69,0.00020375,2]
[374694026,1753416651080,-563.01,0.00020375,2]
[374694027,1753416651089,-460.0,0.00020375,2]
[374694028,1753416651098,-460.0,0.00020375,2]
[374694029,1753416651108,-465.26,0.00020375,2]
[374694030,1753416651118,-476.03,0.00020375,2]
[374694031,1753416651130,-460.0,0.00020375,2]
[374694032,1753416651140,-460.0,0.00020375,2]
[374694033,1753416651149,-460.0,0.00020472,2]
[374694034,1753416651159,-518.24,0.00020472,2]
[374694035,1753416651169,-556.11,0.00020472,2]
[374694036,1753416651179,-507.12,0.00020472,2]
[374694037,1753416651188,-460.0,0.00020472,2]
[374694038,1753416651198,-628.25,0.00020472,2]
[374694039,1753416651208,-1896.12,0.00020474,2]
[374694040,1753416651218,-1222.07,0.00020474,2]
[374694041,1753416651227,-305.09920914,0.00020476,2]
[374694042,1753416651237,-619.96,0.00020476,2]
[374694043,1753416651246,-160.2,0.00020535,3]
[374694044,1753416651255,-5878.07737267,0.00020555,3]
[374694045,1753416651265,-2351.0,0.00020576,2]
[374694046,1753416651275,-460.0,0.00020577,2]
[374694047,1753416651285,-1528.9,0.00020648,2]
[374694048,1753416651295,-1386.56,0.00020648,2]
[374694049,1753416651305,-1197.95,0.00020648,2]
[374694050,1753416651314,-1216.97,0.00020648,2]
[374694051,1753416651324,-1481.6,0.00020648,2]
[374694052,1753416651334,-460.0,0.00020648,2]
[374694053,1753416651343,-460.0,0.00020649,2]
[374694054,1753416651353,-583.27,0.00020649,2]
[374694055,1753416651362,-867.33,0.00020649,2]
[374694056,1753416651371,-460.0,0.00020649,2]
[374694057,1753416651380,-482.61,0.00020649,2]
[374694058,1753416651389,-460.0,0.00020649,2]
[374694059,1753416651399,-564.69,0.00020649,2]
[374694060,1753416651408,-563.01,0.00020649,2]
[374694061,1753416651418,-460.0,0.00020649,2]
[374694062,1753416651427,-180.8338786,0.00020649,2]
[374694063,1753416651436,-465.26,0.00020649,2]
[374694064,1753416651446,-476.03,0.00020649,2]